bitfinex-derivatives/quotes_BNBF0:USTF0_20251219
["timestamp","ask_amount","ask_price","bid_price","bid_amount"]
[1766177718903,0.20206067,861.59,860.74,0.71940687]
[1766177719104,0.20206067,861.59,860.75,0.71940687]
[1766177719304,0.20206067,861.59,860.76,0.71940687]
[1766177719505,0.20206067,861.59,860.77,0.71940687]
[1766177719805,0.20206067,861.59,860.46,0.85421909]
[1766177720005,0.20206067,861.59,860.47,0.72065112]
[1766177720205,0.20206067,861.59,860.48,0.72065112]
[1766177720399,0.20206067,861.59,860.49,0.72065112]
[1766177720599,0.20206067,861.59,860.5,0.72065112]
[1766177720803,0.20206067,861.59,860.51,0.72065112]
[1766177721005,0.20206067,861.59,860.52,0.72065112]
[1766177721205,0.20206067,861.59,860.53,0.72065112]
[1766177721408,0.20206067,861.59,860.54,0.72065112]
[1766177721607,0.20206067,861.59,860.55,0.72065112]
[1766177721807,0.20206067,861.59,860.56,0.72065112]
[1766177722007,0.20206067,861.59,860.57,0.72065112]
[1766177722210,0.20206067,861.59,860.58,0.72065112]
[1766177722404,0.20206067,861.59,860.59,0.72065112]
[1766177722606,0.20206067,861.59,860.6,0.72065112]
[1766177722910,0.20206067,861.59,860.61,0.72065112]
[1766177723108,0.20206067,861.59,860.62,0.72065112]
[1766177723308,0.20206067,861.59,860.31,0.85421909]
[1766177723515,0.20206067,861.59,860.11,10.00856666]
[1766177723516,0.20206067,861.59,860.32,0.72015451]
[1766177723708,0.20206067,861.59,860.33,0.72015451]
[1766177723906,0.20206067,861.59,860.29,0.85421909]
[1766177723907,0.20206067,861.59,860.34,0.72015451]
[1766177724212,0.20206067,861.59,860.35,0.72015451]
[1766177724413,0.20206067,861.59,860.36,0.72015451]
[1766177724608,0.20206067,861.59,860.37,0.72015451]
[1766177724808,0.20206067,861.59,860.38,0.72015451]
[1766177725112,0.20206067,861.59,860.39,0.72015451]
[1766177725414,0.20206067,861.59,860.4,0.72015451]
[1766177725712,0.20206067,861.59,860.19,0.85421909]
[1766177725713,0.20206067,861.59,860.41,0.72015451]
[1766177725913,0.20206067,861.59,860.42,0.72015451]
[1766177726113,0.20206067,861.59,860.43,0.72015451]
[1766177726311,0.20206067,861.59,860.44,0.72015451]
[1766177726509,0.20206067,861.59,860.45,0.72015451]
[1766177726714,0.20206067,861.59,860.18,0.85421909]
[1766177726911,0.20206067,861.59,860.19,0.71997666]
[1766177727214,0.20206067,861.59,860.2,0.71997666]
[1766177727411,0.20206067,861.59,860.21,0.71997666]
[1766177727710,0.20206067,861.59,860.22,0.71997666]
[1766177728011,0.20206067,861.59,860.23,0.71997666]
[1766177728310,0.20206067,861.59,860.24,0.71997666]
[1766177728613,0.20206067,861.59,860.25,0.71997666]
[1766177728808,0.20206067,861.59,860.26,0.71997666]
[1766177729114,0.20206067,861.59,860.27,0.71997666]
[1766177729310,0.20206067,861.59,860.28,0.71997666]
[1766177729512,0.20206067,861.59,860.29,0.71997666]
[1766177729716,0.20206067,861.59,860.3,0.71997666]
[1766177729912,0.20206067,861.59,860.31,0.71997666]
[1766177730113,0.20206067,861.59,860.32,0.71997666]
[1766177730313,0.20206067,861.59,860.33,0.71997666]
[1766177730514,0.20206067,861.59,860.34,0.71997666]
[1766177730717,0.20206067,861.59,860.14,0.85421909]
[1766177730718,0.20206067,861.59,860.35,0.71997666]
[1766177731021,0.20206067,861.59,860.36,0.71997666]
[1766177731317,0.20206067,861.59,860.37,0.71997666]
[1766177731520,0.20206067,861.59,860.38,0.71997666]
[1766177731719,0.20206067,861.59,860.39,0.71997666]
[1766177731920,0.20206067,861.59,860.4,0.71997666]
[1766177732220,0.20206067,861.59,860.41,0.71997666]
[1766177732417,0.20206067,861.59,860.13,0.85421909]
[1766177732618,0.20206067,861.59,860.14,0.71785365]
[1766177732818,0.20206067,861.59,860.15,0.71785365]
[1766177733018,0.20206067,861.59,860.16,0.71785365]
[1766177733322,0.20206067,861.59,860.17,0.71785365]
[1766177733518,0.20206067,861.59,860.18,0.71785365]
[1766177733718,0.20206067,861.59,860.19,0.71785365]
[1766177733919,0.20206067,861.59,860.2,0.71785365]
[1766177734122,0.20206067,861.59,860.21,0.71785365]
[1766177734319,0.20206067,861.59,860.22,0.71785365]
[1766177734524,0.20206067,861.59,860.23,0.71785365]
[1766177734820,0.20206067,861.59,860.24,0.71785365]
[1766177735123,0.20206067,861.59,860.25,0.71785365]
[1766177735323,0.20206067,861.59,860.11,10.86278575]
[1766177735324,0.20206067,861.59,860.26,0.71785365]
[1766177735520,0.20206067,861.59,860.27,0.71785365]
[1766177735723,0.20206067,861.59,860.28,0.71785365]
[1766177735922,0.20206067,861.59,860.29,0.71785365]
[1766177736123,0.20206067,861.59,860.3,0.71785365]
[1766177736322,0.20206067,861.59,860.31,0.71785365]
[1766177736521,0.20206067,861.59,860.32,0.71785365]
[1766177736725,0.20206067,861.59,860.33,0.71785365]
[1766177736925,0.20206067,861.59,860.34,0.71785365]
[1766177737125,0.20206067,861.59,860.35,0.71785365]
[1766177737425,0.20206067,861.59,860.36,0.71785365]
[1766177737725,0.20206067,861.59,860.37,0.71785365]
[1766177738026,0.20206067,861.59,860.11,10.00856666]
[1766177738226,0.20206067,861.59,860.12,0.71736275]
[1766177738426,0.20206067,861.59,860.13,0.71736275]
[1766177738625,0.20206067,861.59,860.14,0.71736275]
[1766177738922,0.20206067,861.59,860.15,0.71736275]
[1766177739122,0.20206067,861.59,860.16,0.71736275]
[1766177739426,0.20206067,861.59,860.17,0.71736275]
[1766177739723,0.20206067,861.59,860.18,0.71736275]
[1766177739922,0.20206067,861.59,860.19,0.71736275]
[1766177740226,0.20206067,861.59,860.2,0.71736275]
[1766177740525,0.20206067,861.59,860.21,0.71736275]
[1766177740725,0.20206067,861.59,860.22,0.71736275]
[1766177740925,0.20206067,861.59,860.23,0.71736275]
[1766177741125,0.20206067,861.59,860.24,0.71736275]
[1766177741427,0.20206067,861.59,860.25,0.71736275]
[1766177741625,0.20206067,861.59,860.26,0.71736275]
[1766177741826,0.20206067,861.59,860.27,0.71736275]
[1766177742125,0.20206067,861.59,860.28,0.71736275]
[1766177742324,0.20206067,861.59,860.29,0.71736275]
[1766177742523,0.20206067,861.59,860.3,0.71736275]
[1766177742721,0.20206067,861.59,860.31,0.71736275]
[1766177742922,0.20206067,861.59,860.32,0.71736275]
[1766177743128,0.20206067,861.59,860.33,0.71736275]
[1766177743324,0.20206067,861.59,860.11,10.00856666]
[1766177743325,0.20206067,861.59,860.34,0.71736275]
[1766177743528,0.20206067,861.59,860.35,0.71736275]
[1766177743724,0.20206067,861.59,860.36,0.71736275]
[1766177744028,0.20206067,861.59,860.11,10.00856666]
[1766177744225,0.20206067,861.59,860.12,0.7175945]
[1766177744525,0.20206067,861.59,860.13,0.7175945]
[1766177744728,0.20206067,861.59,860.14,0.7175945]
[1766177744929,0.20206067,861.59,860.15,0.7175945]
[1766177745126,0.20206067,861.59,860.16,0.7175945]
[1766177745325,0.20206067,861.59,860.17,0.7175945]
[1766177745527,0.20206067,861.59,860.18,0.7175945]
[1766177745728,0.20206067,861.59,860.19,0.7175945]
[1766177745928,0.20206067,861.59,860.2,0.7175945]
[1766177746224,0.20206067,861.59,860.21,0.7175945]
[1766177746427,0.20206067,861.59,860.22,0.7175945]
[1766177746628,0.20206067,861.59,860.23,0.7175945]
[1766177746828,0.20206067,861.59,860.24,0.7175945]
[1766177747028,0.20206067,861.59,860.25,0.7175945]
[1766177747228,0.20206067,861.59,860.26,0.7175945]
[1766177747427,0.20206067,861.59,860.27,0.7175945]
[1766177747625,0.20206067,861.59,860.28,0.7175945]
[1766177747829,0.20206067,861.59,860.29,0.7175945]
[1766177748030,0.20206067,861.59,860.3,0.7175945]
[1766177748226,0.20206067,861.59,860.31,0.7175945]
[1766177748426,0.20206067,861.59,860.32,0.7175945]
[1766177748628,0.20206067,861.59,860.33,0.7175945]
[1766177748829,0.20206067,861.59,860.34,0.7175945]
[1766177749030,0.20206067,861.59,860.35,0.7175945]
[1766177749324,0.20206067,861.59,860.11,10.00856666]
[1766177749325,0.20206067,861.59,860.36,0.7175945]
[1766177749530,0.20206067,861.59,860.37,0.7175945]
[1766177749725,0.20206067,861.59,860.38,0.7175945]
[1766177749929,0.20206067,861.59,860.11,10.86278575]
[1766177750127,0.20206067,861.59,860.12,0.7179578]
[1766177750333,0.20206067,861.59,860.13,0.7179578]
[1766177750531,0.20206067,861.59,860.14,0.7179578]
[1766177750732,0.20206067,861.59,860.15,0.7179578]
[1766177751029,0.20206067,861.59,860.16,0.7179578]
[1766177751231,0.20206067,861.59,860.17,0.7179578]
[1766177751427,0.20206067,861.59,860.18,0.7179578]
[1766177751631,0.20206067,861.59,860.19,0.7179578]
[1766177751832,0.20206067,861.59,860.2,0.7179578]
[1766177752128,0.20206067,861.59,860.21,0.7179578]
[1766177752331,0.20206067,861.59,860.22,0.7179578]
[1766177752531,0.20206067,861.59,860.23,0.7179578]
[1766177752828,0.20206067,861.59,860.24,0.7179578]
[1766177753128,0.20206067,861.59,860.25,0.7179578]
[1766177753428,0.20206067,861.59,860.26,0.7179578]
[1766177753626,0.20206067,861.59,860.27,0.7179578]
[1766177753831,0.20206067,861.59,860.28,0.7179578]
[1766177754028,0.20206067,861.59,860.29,0.7179578]
[1766177754227,0.20206067,861.59,860.3,0.7179578]
[1766177754427,0.20206067,861.59,860.31,0.7179578]
[1766177754632,0.20206067,861.59,860.32,0.7179578]
[1766177754832,0.20206067,861.59,860.33,0.7179578]
[1766177755032,0.20206067,861.59,860.34,0.7179578]
[1766177755231,0.20206067,861.59,860.35,0.7179578]
[1766177755434,0.20206067,861.59,860.36,0.7179578]
[1766177755631,0.20206067,861.59,860.37,0.7179578]
[1766177755831,0.20206067,861.59,860.38,0.7179578]
[1766177756028,0.20206067,861.59,860.13,0.85421909]
[1766177756029,0.20206067,861.59,860.39,0.7179578]
[1766177756233,0.20206067,861.59,860.4,0.7179578]
[1766177756433,0.20206067,861.59,860.41,0.7179578]
[1766177756631,0.20206067,861.59,860.42,0.7179578]
[1766177756828,0.20206067,861.59,860.14,0.85421909]
[1766177757033,0.20206067,861.59,860.15,0.71834586]
[1766177757233,0.20206067,861.59,860.16,0.71834586]
[1766177757429,0.20206067,861.59,860.17,0.71834586]
[1766177757632,0.20206067,861.59,860.18,0.71834586]
[1766177757831,0.20206067,861.59,860.19,0.71834586]
[1766177758032,0.20206067,861.59,860.2,0.71834586]
[1766177758236,0.20206067,861.59,860.21,0.71834586]
[1766177758437,0.20206067,861.59,860.22,0.71834586]
[1766177758634,0.20206067,861.59,860.23,0.71834586]
[1766177758833,0.20206067,861.59,860.24,0.71834586]
[1766177759033,0.20206067,861.59,860.25,0.71834586]
[1766177759234,0.20206067,861.59,860.26,0.71834586]
[1766177759433,0.20206067,861.59,860.27,0.71834586]
[1766177759638,0.20206067,861.59,860.28,0.71834586]
[1766177759835,0.20206067,861.59,860.29,0.71834586]
[1766177760135,0.20206067,861.59,860.3,0.71834586]
[1766177760338,0.20206067,861.59,860.31,0.71834586]
[1766177760538,0.20206067,861.59,860.32,0.71834586]
[1766177760737,0.20206067,861.59,860.33,0.71834586]
[1766177760934,0.20206067,861.59,860.34,0.71834586]
[1766177761236,0.20206067,861.59,860.35,0.71834586]
[1766177761434,0.20206067,861.59,860.36,0.71834586]
[1766177761734,0.20206067,861.59,860.37,0.71834586]
[1766177761936,0.20206067,861.59,860.38,0.71834586]
[1766177762135,0.20206067,861.59,860.39,0.71834586]
[1766177762439,0.20206067,861.59,860.4,0.71834586]
[1766177762639,0.20206067,861.59,860.41,0.71834586]
[1766177762837,0.20206067,861.59,860.42,0.71834586]
[1766177763035,0.20206067,861.59,860.43,0.71834586]
[1766177763238,0.20206067,861.59,860.44,0.71834586]
[1766177765135,0.20206067,861.59,860.52,0.71834586]
[1766177765438,0.20206067,861.59,860.53,0.71834586]
[1766177765639,0.20206067,861.59,860.25,0.85421909]
[1766177765837,0.20206067,861.59,860.26,0.71906819]
[1766177766139,0.20206067,861.59,860.27,0.71906819]
[1766177766339,0.20206067,861.59,860.28,0.71906819]
[1766177766536,0.20206067,861.59,860.29,0.71906819]
[1766177766736,0.20206067,861.59,860.3,0.71906819]
[1766177766941,0.20206067,861.59,860.31,0.71906819]
[1766177767241,0.20206067,861.59,860.32,0.71906819]
[1766177767442,0.20206067,861.59,860.33,0.71906819]
[1766177767644,0.20206067,861.59,860.34,0.71906819]
[1766177767940,0.20206067,861.59,860.35,0.71906819]
[1766177768142,0.20206067,861.59,860.36,0.71906819]
[1766177768338,0.20206067,861.59,860.37,0.71906819]
[1766177768539,0.20206067,861.59,860.38,0.71906819]
[1766177768739,0.20206067,861.59,860.39,0.71906819]
[1766177768938,0.20206067,861.59,860.4,0.71906819]
[1766177769140,1.93565708,861.59,860.41,0.71906819]
[1766177769342,1.93565708,861.59,860.42,0.71906819]
[1766177769638,1.93565708,861.59,860.43,0.71906819]
[1766177769842,1.93565708,861.59,860.44,0.71906819]
[1766177770137,1.93565708,861.59,860.45,0.71906819]
[1766177770340,1.93565708,861.59,860.46,0.71906819]
[1766177770638,1.73359641,861.55,860.19,0.85421909]
[1766177770840,1.73359641,861.55,860.2,0.71964722]
[1766177771043,1.73359641,861.55,860.21,0.71964722]
[1766177771243,1.73359641,861.55,860.19,0.85421909]
[1766177771244,1.73359641,861.55,860.22,0.71964722]
[1766177771440,1.73359641,861.54,860.23,0.71964722]
[1766177771644,1.73359641,861.54,860.24,0.71964722]
[1766177771845,1.73359641,861.58,860.25,0.71964722]
[1766177772046,1.73359641,861.58,860.26,0.71964722]
[1766177772244,1.73359641,861.58,860.27,0.71964722]
[1766177772449,1.73359641,861.57,860.28,0.71964722]
[1766177772746,1.73359641,861.57,860.29,0.71964722]
[1766177772943,1.73359641,861.57,860.3,0.71964722]
[1766177773147,1.73359641,861.57,860.31,0.71964722]
[1766177773342,1.73359641,861.57,860.32,0.71964722]
[1766177773646,1.73359641,861.57,860.33,0.71964722]
[1766177773946,1.73359641,861.57,860.34,0.71964722]
[1766177774146,1.73359641,861.57,860.35,0.71964722]
[1766177774343,1.73359641,861.56,860.36,0.71964722]
[1766177774646,1.73359641,861.56,860.37,0.71964722]
[1766177774847,1.73359641,861.56,860.38,0.71964722]
[1766177775046,1.73359641,861.56,860.39,0.71964722]
[1766177775247,1.73359641,861.55,860.4,0.71964722]
[1766177775542,1.73359641,861.55,860.41,0.71964722]
[1766177775746,1.73359641,861.55,860.42,0.71964722]
[1766177775942,1.73359641,861.55,860.43,0.71964722]
[1766177776141,1.73359641,861.55,860.26,0.85421909]
[1766177776142,1.73359641,861.56,860.44,0.71964722]
[1766177776449,1.73359641,861.55,860.45,0.71964722]
[1766177776642,1.73359641,861.55,860.46,0.71964722]
[1766177776846,1.73359641,861.55,860.47,0.71964722]
[1766177777146,1.73359641,861.55,860.48,0.71964722]
[1766177777343,1.73359641,861.54,860.49,0.71964722]
[1766177777647,1.73359641,861.57,860.5,0.71964722]
[1766177777846,1.73359641,861.57,860.15,1.13903193]
[1766177778049,1.73359641,861.57,860.3,0.85896416]
[1766177778349,1.73359641,861.58,860.34,0.85896416]
[1766177778648,1.73359641,861.58,860.35,0.72041302]
[1766177778849,1.73359641,861.58,860.36,0.72041302]
[1766177779051,1.73359641,861.58,860.37,0.72041302]
[1766177779251,1.73359641,861.57,860.38,0.72041302]
[1766177779445,1.73359641,861.57,860.39,0.72041302]
[1766177779749,1.73359641,861.57,860.4,0.72041302]
[1766177779950,1.73359641,861.57,860.41,0.72041302]
[1766177780249,1.73359641,861.57,860.42,0.72041302]
[1766177780450,1.73359641,861.56,860.43,0.72041302]
[1766177780749,1.73359641,861.56,860.44,0.72041302]
[1766177780949,1.73359641,861.56,860.45,0.72041302]
[1766177781151,1.73359641,861.56,860.46,0.72041302]
[1766177781348,1.73359641,861.56,860.47,0.72041302]
[1766177781547,1.73359641,861.56,860.48,0.72041302]
[1766177781751,1.73359641,861.55,860.49,0.72041302]
[1766177781947,1.73359641,861.55,860.5,0.72041302]
[1766177782251,1.73359641,861.55,860.51,0.72041302]
[1766177782552,1.73359641,861.55,860.52,0.72041302]
[1766177782748,1.73359641,861.55,860.53,0.72041302]
[1766177782952,1.73359641,861.55,860.54,0.72041302]
[1766177783149,1.73359641,861.55,860.55,0.72041302]
[1766177783349,1.73359641,861.55,860.56,0.72041302]
[1766177783654,1.73359641,861.55,860.57,0.72041302]
[1766177783853,1.73359641,861.55,860.58,0.72041302]
[1766177784049,1.73359641,861.55,860.59,0.72041302]
[1766177784249,1.73359641,861.55,860.6,0.72041302]
[1766177784448,1.73359641,861.55,860.61,0.72041302]
[1766177784652,1.73359641,861.55,860.62,0.72041302]
[1766177784948,1.73359641,861.55,860.63,0.72041302]
[1766177785150,1.73359641,861.55,860.64,0.72041302]
[1766177785350,1.73359641,861.55,860.37,0.85896416]
[1766177785553,1.73359641,861.55,860.38,0.72120656]
[1766177785750,1.73359641,861.55,860.39,0.72120656]
[1766177785950,1.73359641,861.55,860.4,0.72120656]
[1766177786154,1.73359641,861.55,860.41,0.72120656]
[1766177786353,1.73359641,861.55,860.42,0.72120656]
[1766177786551,1.73359641,861.55,860.43,0.72120656]
[1766177786754,1.73359641,861.55,860.44,0.72120656]
[1766177786951,1.73359641,861.55,860.45,0.72120656]
[1766177787151,1.73359641,861.55,860.46,0.72120656]
[1766177787352,1.73359641,861.55,860.47,0.72120656]
[1766177787552,1.73359641,861.55,860.48,0.72120656]
[1766177787855,1.73359641,861.55,860.49,0.72120656]
[1766177788056,1.73359641,861.55,860.5,0.72120656]
[1766177788253,1.73359641,861.55,860.51,0.72120656]
[1766177788456,1.73359641,861.55,860.52,0.72120656]
[1766177788654,1.73359641,861.55,860.53,0.72120656]
[1766177788856,1.73359641,861.55,860.37,0.85896416]
[1766177788857,1.73359641,861.55,860.54,0.72120656]
[1766177789154,1.73359641,861.55,860.55,0.72120656]
[1766177789356,1.73359641,861.55,860.56,0.72120656]
[1766177789553,1.73359641,861.55,860.57,0.72120656]
[1766177789757,1.73359641,861.55,860.58,0.72120656]
[1766177789956,1.73359641,861.55,860.59,0.72101979]
[1766177790253,1.73359641,861.55,860.6,0.72101979]
[1766177790456,1.73359641,861.55,860.61,0.72101979]
[1766177790656,1.73359641,861.55,860.62,0.72101979]
[1766177790858,1.73359641,861.55,860.63,0.72101979]
[1766177791056,1.73359641,861.55,860.64,0.72101979]
[1766177791358,1.73359641,861.55,860.37,0.86039116]
[1766177791554,1.73359641,861.55,860.38,0.72101436]
[1766177791756,1.73359641,861.55,860.39,0.72101436]
[1766177791959,1.73359641,861.55,860.4,0.72101436]
[1766177792160,1.73359641,861.55,860.41,0.72101436]
[1766177792357,1.73359641,861.55,860.42,0.72101436]
[1766177792558,1.73359641,861.55,860.43,0.72101436]
[1766177792756,1.73359641,861.55,860.44,0.72101436]
[1766177792956,1.73359641,861.55,860.45,0.72101436]
[1766177793157,1.73359641,861.55,860.46,0.72101436]
[1766177793357,1.73359641,861.55,860.47,0.72101436]
[1766177793660,1.73359641,861.55,860.48,0.72101436]
[1766177793860,1.73359641,861.55,860.49,0.72101436]
[1766177794056,1.73359641,861.55,860.5,0.72101436]
[1766177794260,1.73359641,861.55,860.51,0.72101436]
[1766177794458,1.73359641,861.55,860.52,0.72101436]
[1766177794658,1.73359641,861.38,860.19,0.86039116]
[1766177794861,1.73359641,861.38,860.2,0.72176307]
[1766177795158,1.73359641,861.38,860.21,0.72176307]
[1766177795362,1.73359641,861.38,860.22,0.72176307]
[1766177795657,1.73359641,861.38,860.23,0.72176307]
[1766177795863,1.73359641,861.38,860.24,0.72176307]
[1766177796157,1.73359641,861.38,860.19,0.86039116]
[1766177796158,1.73359641,861.38,860.25,0.72176307]
[1766177796361,1.73359641,861.38,860.26,0.72176307]
[1766177796560,1.73359641,861.38,860.27,0.72176307]
[1766177796763,1.73359641,861.38,860.28,0.72176307]
[1766177796963,1.73359641,861.38,860.29,0.72176307]
[1766177797164,1.73359641,861.39,860.3,0.72176307]
[1766177797462,1.73359641,861.39,860.31,0.72176307]
[1766177797661,1.73359641,861.39,860.32,0.72176307]
[1766177797859,1.73359641,861.39,860.33,0.72176307]
[1766177798160,1.73359641,861.39,860.34,0.72176307]
[1766177798364,1.73359641,861.39,860.35,0.72176307]
[1766177798565,1.73359641,861.39,860.36,0.72176307]
[1766177798765,1.73359641,861.39,860.37,0.72176307]
[1766177799061,1.73359641,861.39,860.18,0.86039116]
[1766177799062,1.73359641,861.39,860.38,0.72176307]
[1766177799266,1.73359641,861.39,860.39,0.72176307]
[1766177799464,1.73359641,861.4,860.4,0.72176307]
[1766177799665,1.73359641,861.4,860.41,0.72176307]
[1766177799865,1.73359641,861.4,860.42,0.72176307]
[1766177800164,1.73359641,861.4,860.43,0.72176307]
[1766177800364,1.73359641,861.4,860.44,0.72176307]
[1766177800564,1.73359641,861.4,860.45,0.72176307]
[1766177800765,1.73359641,861.4,860.17,0.86039116]
[1766177800966,1.73359641,861.4,860.18,0.72125133]
[1766177801266,1.73359641,861.37,860.19,0.72125133]
[1766177801463,1.73359641,861.29,860.2,0.72125133]
[1766177801669,1.73359641,861.29,860.21,0.72125133]
[1766177801868,1.73359641,861.29,860.22,0.72125133]
[1766177802068,1.73359641,861.29,860.23,0.72125133]
[1766177802364,1.73359641,861.3,860.24,0.72125133]
[1766177802569,1.73359641,861.3,860.25,0.72125133]
[1766177802766,1.73359641,861.3,860.26,0.72125133]
[1766177802965,1.73359641,861.3,860.27,0.72125133]
[1766177803169,1.73359641,861.31,860.28,0.72125133]
[1766177803368,1.73359641,861.31,860.29,0.72125133]
[1766177803664,1.73359641,861.31,860.3,0.72125133]
[1766177803869,1.73359641,861.31,860.31,0.72125133]
[1766177804066,1.73359641,861.31,860.04,0.86039116]
[1766177804371,1.73359641,861.31,860.05,0.72100305]
[1766177804570,1.73359641,861.31,860.06,0.72100305]
[1766177804864,1.73359641,861.31,860.07,0.72100305]
[1766177805069,1.73359641,861.31,860.08,0.72100305]
[1766177805367,1.73359641,861.29,860.09,0.72100305]
[1766177805566,1.73359641,861.29,860.1,0.72100305]
[1766177805870,1.73359641,861.29,860.11,0.72100305]
[1766177806069,1.73359641,861.29,860.12,0.72100305]
[1766177806269,1.73359641,861.3,860.13,0.72100305]
[1766177806469,1.73359641,861.3,860.14,0.72100305]
[1766177806670,1.73359641,861.3,860.15,0.72100305]
[1766177806867,1.73359641,861.3,860.16,0.72100305]
[1766177807071,1.73359641,861.3,860.17,0.72100305]
[1766177807368,1.73359641,861.31,860.18,0.72100305]
[1766177807572,1.73359641,861.31,860.19,0.72100305]
[1766177807770,1.73359641,861.31,860.2,0.72100305]
[1766177807970,1.73359641,861.31,860.21,0.72100305]
[1766177808173,1.73359641,861.32,860.22,0.72100305]
[1766177808473,1.73359641,861.32,860.23,0.72100305]
[1766177808771,1.73359641,861.32,860.24,0.72100305]
[1766177808971,1.73359641,861.32,859.98,9.8780475]
[1766177809173,1.73359641,861.32,859.99,0.72066622]
[1766177809375,1.73359641,861.32,860.0,0.72066622]
[1766177809570,1.73359641,861.32,860.01,0.72066622]
[1766177809774,1.73359641,861.32,860.02,0.72066622]
[1766177809977,1.73359641,861.32,860.03,0.72066622]
[1766177810179,1.73359641,861.33,860.04,0.72066622]
[1766177810375,1.73359641,861.33,860.05,0.72066622]
[1766177810576,1.73359641,861.33,860.06,0.72066622]
[1766177810779,1.73359641,861.33,860.07,0.72066622]
[1766177810979,1.73359641,861.33,860.08,0.72066622]
[1766177811176,1.73359641,861.33,860.09,0.72066622]
[1766177811381,1.73359641,861.33,860.1,0.72066622]
[1766177811680,1.73359641,861.33,860.11,0.72066622]
[1766177811877,1.73359641,861.35,860.12,0.72066622]
[1766177812181,1.73359641,861.36,860.13,0.72033278]
[1766177812481,1.73359641,861.36,860.14,0.72033278]
[1766177812682,1.73359641,861.36,860.15,0.72033278]
[1766177812978,1.73359641,861.36,860.16,0.72033278]
[1766177813181,1.73359641,861.36,860.17,0.72033278]
[1766177813378,1.73359641,861.36,860.18,0.72033278]
[1766177813681,1.73359641,861.36,860.19,0.72033278]
[1766177813984,1.73359641,861.36,860.2,0.72033278]
[1766177814182,1.73359641,861.37,860.21,0.72033278]
[1766177814382,1.73359641,861.37,860.22,0.72033278]
[1766177814579,1.73359641,861.37,860.23,0.72033278]
[1766177814778,1.73359641,861.37,859.98,9.8780475]
[1766177814984,1.73359641,861.37,859.99,0.72006957]
[1766177815179,1.73359641,861.37,860.0,0.72006957]
[1766177815385,1.73359641,861.37,860.01,0.72006957]
[1766177815683,1.73359641,861.37,860.02,0.72006957]
[1766177815981,1.73359641,861.37,860.03,0.72006957]
[1766177816181,1.73359641,861.38,860.04,0.72006957]
[1766177816384,1.73359641,861.38,860.05,0.72006957]
[1766177816579,1.73359641,861.38,860.06,0.72006957]
[1766177816785,1.73359641,861.38,860.07,0.72006957]
[1766177817082,1.73359641,861.38,860.08,0.72006957]
[1766177817282,1.73359641,861.38,860.09,0.72006957]
[1766177817479,1.73359641,861.38,860.1,0.72006957]
[1766177817780,1.73359641,861.38,860.11,0.72006957]
[1766177817988,1.73359641,861.38,860.12,0.72006957]
[1766177818184,1.73359641,861.38,860.13,0.72006957]
[1766177818387,1.73359641,861.39,860.14,0.72006957]
[1766177818585,1.73359641,861.39,859.98,9.8780475]
[1766177818586,1.73359641,861.39,860.15,0.72006957]
[1766177818787,1.73359641,861.39,860.16,0.72006957]
[1766177818985,1.73359641,861.39,860.17,0.72006957]
[1766177819182,1.73359641,861.39,860.18,0.72006957]
[1766177819383,1.73359641,861.39,860.19,0.72006957]
[1766177819685,1.73359641,861.39,860.2,0.72006957]
[1766177819885,1.73359641,861.39,859.98,9.8780475]
[1766177820086,1.73359641,861.39,859.99,0.71943375]
[1766177820286,1.73359641,861.39,860.0,0.71943375]
[1766177820486,1.73359641,861.39,860.01,0.71943375]
[1766177820787,1.73359641,861.39,860.02,0.71943375]
[1766177820987,1.73359641,861.39,860.03,0.71943375]
[1766177821188,1.73359641,861.39,860.04,0.71943375]
[1766177821488,1.73359641,861.39,860.05,0.71943375]
[1766177821784,1.73359641,861.37,860.06,0.71943375]
[1766177821986,1.73359641,861.37,860.07,0.71943375]
[1766177822195,1.73359641,861.37,860.08,0.71943375]
[1766177822488,1.73359641,861.37,860.09,0.71943375]
[1766177822686,1.73359641,861.37,860.1,0.71943375]
[1766177822886,1.73359641,861.37,860.11,0.71943375]
[1766177823086,1.73359641,861.37,860.12,0.71943375]
[1766177823289,1.73359641,861.37,860.13,0.71943375]
[1766177823586,1.73359641,861.37,860.14,0.71943375]
[1766177823785,1.73359641,861.37,860.15,0.71943375]
[1766177823986,1.73359641,861.37,860.16,0.71943375]
[1766177824290,1.73359641,861.37,860.17,0.71943375]
[1766177824592,1.73359641,861.37,859.98,9.8780475]
[1766177824891,1.73359641,861.37,859.99,0.71911907]
[1766177825186,1.73359641,861.37,860.0,0.71911907]
[1766177825386,1.73359641,861.37,860.01,0.71911907]
[1766177825585,1.73359641,861.37,860.02,0.71911907]
[1766177825787,1.73359641,861.37,860.03,0.71911907]
[1766177825989,1.73359641,861.37,860.04,0.71911907]
[1766177826187,1.73359641,861.37,860.05,0.71911907]
[1766177826391,1.73359641,861.33,860.06,0.71911907]
[1766177826589,1.73359641,861.33,860.07,0.71911907]
[1766177826789,1.73359641,861.33,860.08,0.71911907]
[1766177827092,1.73359641,861.33,860.09,0.71911907]
[1766177827292,1.73359641,861.33,860.1,0.71911907]
[1766177827494,1.73359641,861.33,860.11,0.71911907]
[1766177827691,1.73359641,861.33,860.12,0.71911907]
[1766177827890,1.73359641,861.33,860.13,0.71911907]
[1766177828094,1.73359641,861.33,860.14,0.71911907]
[1766177828290,1.73359641,861.33,859.98,9.8780475]
[1766177828492,1.73359641,861.33,859.99,0.71921281]